{"text_format":"1","workbook":"xlsx","n_sheets":7,"sheets":["Navigation","Véhicule","Entreprise","Personnel Roulant","CIRCUIT","Coût personnel","Prix de revient et prix d'offre"],"not_rendered":{"charts":0,"images":2,"macros":1,"external_links":0,"defined_names":7,"comments":1,"pivot_tables":0},"unopened":[],"bounds":{"document_bytes":16777216,"sheet_cells":100000,"rows_first":2000,"rows_last":500,"rows_between":2000,"halvings":0,"cell_chars":16384,"cell_head_chars":4096},"cells_cut":0,"cells_raw":0,"read":"whole","date_system":"1900"}

{"sheet":"Navigation","index":0,"n_rows":11,"n_cols":4,"rows_kept":11,"cut":false,"hidden":false,"merged":[[9,3,9,5],[10,3,10,5],[1,1,1,6],[5,3,5,5],[6,3,6,5],[7,3,7,5],[8,3,8,5]]}
[]
[null,"ICB - Calculateur de prix services réguliers spécialisés"]
[]
[null,null,"Navigation"]
[]
[null,null,null,"1. Imputation des données du véhicule"]
[null,null,null,"2. Imputation des données de l'entreprise"]
[null,null,null,"3. Imputation des données du personnel roulant"]
[null,null,null,"4. Imputation des données du circuit"]
[null,null,null,"5. Calcul du coût salarial"]
[null,null,null,"6. Calcul du prix de revient et prix d'offre"]

{"sheet":"Véhicule","index":1,"n_rows":99,"n_cols":22,"rows_kept":99,"cut":false,"hidden":false,"merged":[[93,1,93,19],[33,19,35,19],[88,19,89,19]]}
[]
[]
[null,null,"Date introduction",null,null,null,null,null,null,null,null,"Données du véhicule"]
[]
[]
[null,null,null,null,null,null,null,"VEHICULE 1",null,"VEHICULE 2",null,"VEHICULE 3",null,"VEHICULE 4",null,"VEHICULE 5",null,"VEHICULE 6"]
[]
[null,null,null,"Nom du véhicule:",null,null,null,"Mercedes Sprinter 23pl",null,"Iveco 36pl",null,"Iveco 38pl",null,"Mercedes Atego 40pl",null,"Mercedes Intouro 55pl",null,"Mercedes Intouro 65pl"]
[null,null,"1. AMORTISSEMENT 1 2"]
[null,null,null,"Propriété ou Leasing?",null,null,null,null,null,null,null,null,null,null,null,null,null,null,null,null,null,"En propriété"]
[null,null,null,null,null,null,null,null,null,null,null,null,null,null,null,null,null,null,null,null,null,"En leasing"]
[null,null,null,"Aankoopprijs:",null,null,null,1,null,1,null,1,null,1,null,1,null,1]
[]
[null,null,null,"Montant mensuel du leasing:",null,null,null,null,null,null,null,null,null,null,null,null,null,null,null,"si d'application"]
[]
[null,null,null,"Prix d'achat:",null,null,null,null,null,null,null,null,null,null,null,null,null,null,null,"prix d'achat global du véhicule"]
[]
[null,null,null,"Valeur résiduelle:",null,null,null,null,null,null,null,null,null,null,null,null,null,null,null,"valeur résiduelle estimée du véhicule à la fin de sa durée de vie dans l'entreprise (en % du prix d'achat global)"]
[]
[null,null,null,"Durée de vie en années:",null,null,null,null,null,null,null,null,null,null,null,null,null,null,null,"nombre d'années que le véhicule restera normalement dans l'entreprise"]
[]
[null,null,null,"Durée de vie en kilomètres:",null,null,null,null,null,null,null,null,null,null,null,null,null,null,null,"nombre de kilomètres que le véhicule devrait faire avant son remplaçage"]
[]
[null,null,null,"Nombre de jours d'utilisation par an:",null,null,null,null,null,null,null,null,null,null,null,null,null,null,null,"nombre moyen de jours d'utilisation par an du véhicule"]
[]
[null,null,null,"Kilomètres parcourus par an:",null,null,null,null,null,null,null,null,null,null,null,null,null,null,null,"nombre de kilomètres parcouru en moyenne avec le véhicule par an"]
[]
[null,null,"2. FINANCEMENT"]
[]
[null,null,null,"Taux d'intérêt emprunt véhicule:",null,null,null,null,null,null,null,null,null,null,null,null,null,null,null,"taux d'emprunt, si d'application"]
[]
[null,null,null,"Pourcentage autofinancement véhicule:",null,null,null,null,null,null,null,null,null,null,null,null,null,null,null,"pourcentage de la valeur d'achat du véhicule financé par du capital propre"]
[]
[null,null,null,"Taux d'intérêt sans risque:",null,null,null,null,null,null,null,null,null,null,null,null,null,null,null,"introduisez ici le taux d'intérêt que vous recevriez si vous souscrivez à un placement sans risque (comme un emprunt d'Etat, un bon de caisse ou un carnet d'épargne) pour le calcul du coût d'opportunité"]
[]
[null,null,"3. CONSOMMATION"]
[]
[null,null,null,"Consommation gasoil:",null,null,null,null,null,null,null,null,null,null,null,null,null,null,null,"en litres par 100 km"]
[]
[null,null,null,"Consommation huile:",null,null,null,null,null,null,null,null,null,null,null,null,null,null,null,"en litres par 100 km"]
[]
[null,null,null,"Consommation Adblue:",null,null,null,null,null,null,null,null,null,null,null,null,null,null,null,"en litres par 100 km"]
[]
[null,null,"4. PNEUS"]
[]
[null,null,null,"Nombre de pneus à l'avant:"]
[]
[null,null,null,"Nombre de pneus à l'arrière:"]
[]
[null,null,null,"Durée de vie des pneus à l'avant:",null,null,null,null,null,null,null,null,null,null,null,null,null,null,null,"en km"]
[]
[null,null,null,"Durée de vie des pneus à l'arrière:",null,null,null,null,null,null,null,null,null,null,null,null,null,null,null,"en km"]
[]
[null,null,null,"Prix unitaire d'un pneu:",null,150,null,null,null,null,null,null,null,null,null,null,null,null,null,"hors TVA"]
[]
[null,null,"5.  ASSURANCES"]
[]
[null,null,null,"Prime RC du véhicule:"]
[]
[null,null,null,"Prime assurance incendie du véhicule"]
[]
[null,null,null,"Assurance pour dégâts propres:"]
[]
[null,null,null,"Assurance vol:"]
[]
[null,null,null,"Assistance juridique:"]
[]
[null,null,null,"Assistance véhicule:"]
[]
[null,null,null,"Bris de glace:"]
[]
[null,null,null,"Autres primes:"]
[]
[]
[null,null,"6. FRAIS D'ENTRETIEN ANNUELS"]
[]
[null,null,null,"Entretien et réparation par des tiers",null,null,null,null,null,null,null,null,null,null,null,null,null,null,null,"montant annuel pour l'entretien du véhicule effectué en dehors de l'entreprise"]
[]
[null,null,null,"Pièces de rechange",null,null,null,null,null,null,null,null,null,null,null,null,null,null,null,"introduisez ici le montant que vous payé par an pour les pièces de rechange pour ce véhicule"]
[]
[null,null,"7. AUTRES COÛTS FIXES LIÉS AU VÉHICULE"]
[]
[null,null,null,"Côntrole technique:",null,90,null,null,null,null,null,null,null,null,null,null,null,null,null,"coût du contôle technique"]
[]
[null,null,null,"Nombre de contrôles par an:",null,null,null,null,null,null,null,null,null,null,null,null,null,null,null,"nombre de fois par an (en moyenne) - (attestation de contrôle rouge: periodicité abrégée)"]
[]
[null,null,null,"Cotisation véhicule affiliation FBAA:",null,50]
[]
[null,null,null,"Autres coûts fixes liés au véhicule:",null,null,null,null,null,null,null,null,null,null,null,null,null,null,null,"autres coûts fixes liés au véhicule qui n'ont pas été introduits sous une rubrique précédente"]
[]
[null,null,"1 Si vous utilisez votre véhicule pour des services réguliers et pour des services réguliers spécialisés, vous devez introduire les données pour les deux activités ensemble."]
[null,null,"2 Nous référons à la durée réelle que le véhicule reste dans l'entreprise, non à l'amortissement pour des raisons fiscales."]
[]
[]
[]
[]
[null,null,null,"Optie 1",null,null,null,{"$f":"IF(#REF!=0,1,#REF!)","v":{"$error":"#REF!"}},null,{"$f":"IF(#REF!=0,1,#REF!)","v":{"$error":"#REF!"}},null,{"$f":"IF(#REF!=0,1,#REF!)","v":{"$error":"#REF!"}},null,{"$f":"IF(#REF!=0,1,#REF!)","v":{"$error":"#REF!"}},null,{"$f":"IF(#REF!=0,1,#REF!)","v":{"$error":"#REF!"}},null,{"$f":"IF(#REF!=0,1,#REF!)","v":{"$error":"#REF!"}}]
[null,null,null,"Optie 2",null,null,null,{"$f":"IF(#REF!=0,1,#REF!)","v":{"$error":"#REF!"}},null,{"$f":"IF(#REF!=0,1,#REF!)","v":{"$error":"#REF!"}},null,{"$f":"IF(#REF!=0,1,#REF!)","v":{"$error":"#REF!"}},null,{"$f":"IF(#REF!=0,1,#REF!)","v":{"$error":"#REF!"}},null,{"$f":"IF(#REF!=0,1,#REF!)","v":{"$error":"#REF!"}},null,{"$f":"IF(#REF!=0,1,#REF!)","v":{"$error":"#REF!"}}]
[null,null,null,"Optie 3",null,null,null,{"$f":"IF(#REF!=0,1,#REF!)","v":{"$error":"#REF!"}},null,{"$f":"IF(#REF!=0,1,#REF!)","v":{"$error":"#REF!"}},null,{"$f":"IF(#REF!=0,1,#REF!)","v":{"$error":"#REF!"}},null,{"$f":"IF(#REF!=0,1,#REF!)","v":{"$error":"#REF!"}},null,{"$f":"IF(#REF!=0,1,#REF!)","v":{"$error":"#REF!"}},null,{"$f":"IF(#REF!=0,1,#REF!)","v":{"$error":"#REF!"}}]

{"sheet":"Entreprise","index":2,"n_rows":58,"n_cols":9,"rows_kept":58,"cut":false,"hidden":false,"merged":[[60,1,60,8]]}
[]
[]
[null,null,"Date d'introduction des données:",null,null,null,"Données d'entreprise *"]
[]
[null,null,"* Si votre entreprise ne fait pas uniquement des activités services réguliers spécialisés: essayez d'estimer la partie des coûts attribuable aux activités services réguliers spécialisés!"]
[]
[null,null,"1. FLOTTE SERVICES RÉGULIERS SPÉCIALISÉS"]
[]
[null,null,null,null,"Nombre de véhicules:",null,null,null,"Nombre total de tous les véhicules dans l'entreprise"]
[]
[null,null,null,null,"Nombre moyen de jours d'utilisation par véhicule par an:"]
[]
[null,null,null,null,"Kilométrage annuel (tous les véhicules)"]
[]
[null,null,"2. ENTRETIEN"]
[]
[]
[null,null,null,null,"Personnel du garage",null,null,null,"coût salarial annuel de tous le personnel de garage"]
[]
[null,null,"3. CONSOMMATION"]
[]
[null,null,null,null,"Prix gasoil",null,null,null,"prix par litre (hors TVA)"]
[]
[null,null,null,null,"Prix huile",null,null,null,"prix par litre (hors TVA)"]
[]
[null,null,null,null,"Prix adblue",null,null,null,"prix par litre (hors TVA)"]
[]
[null,null,"4. COÛTS D'INFRASTRUCTURE"]
[]
[null,null,null,null,"Dépôt et bâtiments",null,null,null,"coût annuel du dépôt et des bâtiments(amortissements, loyer, financement,…)"]
[]
[null,null,null,null,"Véhicules d'entreprise",null,null,null,"coût annuel des véhicules d'entreprise (cammionnette d'entreprise, …)"]
[]
[null,null,null,null,"Services d'utilité publique et chauffage",null,null,null,"coût annuel d'électricité, eau, gaz, mazout, télécommunications, internet, …"]
[]
[null,null,null,null,"Station de lavage",null,null,null,"coût annuel interne ou externe de la station de lavage (produits, amortissement, station de lavage externe)"]
[]
[null,null,"5. COÛTS ADMINISTRATIFS"]
[]
[null,null,null,null,"Assurances de l'entreprise",null,null,null,"coût annuel des assurances non-liées à un véhicule spécifique (incendie bâtiment, exploitaiton, RC,…)"]
[]
[null,null,null,null,"Frais informatiques",null,null,null,"coût annuel"]
[]
[null,null,null,null,"Autres frais de bureau",null,null,null,"coût annuel de papier, cartouches d'encre,…"]
[]
[null,null,null,null,"Employés",null,null,null,"coût salarial annuel"]
[]
[null,null,null,null,"Chef d'entreprise",null,null,null,"coût annuel"]
[]
[null,null,null,null,"Secrétariat social",null,null,null,"coût total annuel"]
[]
[null,null,null,null,"Affiliation FBAA",null,null,null,"cotisation fixe annuelle"]
[]
[null,null,null,null,"Autres cotisations",null,null,null,"coût total annuel"]
[]
[null,null,null,null,"Autres coûts fixes liés à l'entreprise",null,null,null,"coût annuel p.ex. services d'entretien"]
[]
[null,null,null,null,"Cautionnement De Lijn",null,null,null,"garantie fournie par le transporteur = 5 % de la valeur annuelle du contrat + coût financier du cautionnement"]

{"sheet":"Personnel Roulant","index":3,"n_rows":57,"n_cols":12,"rows_kept":57,"cut":false,"hidden":false,"merged":[[58,1,58,11]]}
[]
[]
[null,null,null,"Date d'introduction des données:",null,null,null,null,null,"Données du personnel roulant"]
[]
[]
[null,null,"1. SALAIRES BRUTS, PRIMES ET SUPPLÉMENTS"]
[]
[null,null,null,"Salaire de base selon l'ancienneté"]
[null,null,null,null,null,"0 - 2",null,11.78,null,15.33]
[]
[null,null,null,null,null,"3 - 5",null,11.85,null,15.42]
[]
[null,null,null,null,null,"6 - 10",null,11.91,null,15.5]
[]
[null,null,null,null,null,"11 - 15",null,12.04,null,15.67]
[]
[null,null,null,null,null,"16 - 20",null,12.23,null,15.92]
[null,null,null,null,null," "]
[null,null,null,null,null,"21+",null,12.3,null,16.010000000000002]
[null,null,null,"Indemnité RGTP"]
[null,null,null,null,null,"régime de travail > 25/38",null,6.54,null,8.11,null,"montant par jour"]
[]
[null,null,null,null,null,"régime de travail < 25/38",null,5.98,null,null,null,"montant par jour"]
[]
[null,null,null,"Primes et suppléments"]
[null,null,null,null,null,"Travail de nuit",null,1,null,1.01,null,"supplément par heure"]
[]
[null,null,null,null,null,"Travail dominical",null,1,null,null,null,"majoration des salaires de base"]
[]
[null,null,null,null,null,"Prime de fin d'année",null,1885.6,null,null,null,"prime équivalent un temps plein déduite de l'acompte versé par le Fonds Social"]
[]
[null,null,null,null,null,"Rémunération services coupés",null,1,null,1,null,"rémunération forfaitaire par jour presté"]
[]
[null,null,null,null,null,"Indemnité annuelle vêtements de travail",null,17.100000000000001,null,null,null,"indemnité annuelle d'habillement pour l'entretien des habits "]
[]
[null,null,null,null,null,"Indemnité mensuelle d'habillement",null,7.44,null,null,null,"indemnité mensuelle pour les uniformes qui ne sont pas mis à disposition"]
[]
[null,null,null,null,null,"Montant des éco-chèques",null,125,null,125,null,"montant annuel pour un équivalent temps plein"]
[]
[null,null,null,null,null,"Frais émission des éco-chèques ",null,null,null,null,null,"Coût patronal des Ticket EcoCheque® après impôts - Montant total"]
[null,null,"2. AUTRES ÉLÉMENTS SALARIAUX"]
[]
[null,null,null,null,null,"Cotisation ONSS employeur",null,null,null,null,null,"pourcentage du salaire brut pour l'employeur"]
[]
[null,null,null,null,null,"Réduction structurelle des cotisations patronales",null,null,null,null,null,"montant annuel pour un équivalent temps plein"]
[]
[null,null,null,null,null,"Assurances accident de travail",null,null,null,null,null,"montant annuel pour un équivalent temps plein"]
[]
[null,null,null,null,null,"Maladie et 'petits chômages'",null,null,null,null,null,"montant annuel pour un équivalent temps plein"]
[]
[null,null,null,null,null,"Examen médical",null,null,null,null,null,"montant annuel"]
[]
[null,null,null,null,null,"Formation permanente",null,null,null,null,null,"montant annuel"]
[]
[null,null,null,null,null,"Autres",null,null,null,null,null,"montant annuel pour un équivalent temps plein (permis de conduire, sélection médicale,visite médicale, carte tachygraphe, Fonds de protection au travail)"]
[]
[null,null,null,null,null,"Chèques-repas",null,null,null,null,null,"Coût des chèques-repas pour l'employeur"]

{"sheet":"CIRCUIT","index":4,"n_rows":48,"n_cols":20,"rows_kept":48,"cut":false,"hidden":false,"merged":[[6,8,8,14],[39,1,39,7],[39,8,39,14]]}
[]
[]
[null,null,null,"Date d'introduction des données: ","--/--/--",null,"Données de parcours"]
[]
[null,null,"1. DONNEES DU CIRCUIT"]
[]
[null,null,null,null,"Petit circuit?",null,null,null,"Un petit circuit est un circuit que le chauffeur combine avec un autre circuit pendant la journée"]
[]
[null,null,null,null,"Nombre de km à vide par jour"]
[]
[null,null,null,null,"Nombre de km chargé par jour"]
[]
[null,null,null,null,"Nombre total de km par jour",null,{"$f":"G9+G11","v":0}]
[]
[null,null,null,null,"Durée de conduite totale (hh:mm):"]
[null,null,null,null,"dont le nombre d'heures le dimanche",null,"00:00:00"]
[null,null,null,null,"dont le nombre d'heures la nuit (22h-6h)",null,"00:00:00"]
[]
[null,null,null,null,"Nombre de jours par semaine que le service est normalement exécuté",null,null,null,"Données requises pour calculer la prime RGPT (seulement grand circuit)"]
[]
[null,null,null,null,null,null,null,null,"Durée periode 1 (hh:mm)",null,"Durée periode 2 (hh:mm)",null,"Durée periode 3 (hh:mm)",null,"Durée periode 4 (hh:mm)"]
[]
[null,null,null,null,"Nombre de stationnement (arrêt sur la ligne)"]
[]
[null,null,null,null,"Nombre de coupures (arrêt au dépôt)"]
[null,null,"2. DONNÉES DU CHAUFFEUR SUR LE CIRCUIT"]
[]
[null,null,null,null,"Ancienneté chauffeur (en années)"]
[]
[null,null,null,null,"Nombre annuel de jours ouvrables du chauffeur"]
[]
[null,null,null,null,"Rémunération services coupés est d'application?"]
[]
[null,null,null,null,"Indemnité vêtements de travail?"]
[]
[null,null,null,null,"Éco-chèques est d'application?"]
[]
[null,null,null,null,"Indemnisation Educheck (contrat/an - si d'application)"]
[]
[]
[]
[null,null,null,null,null,null,null,null,null,null,null,null,null,null,null,null,null,"GD/Eco","werkkledij","anciënniteit"]
[null,null,null,null,null,null,null,null,null,null,null,null,null,null,null,null,null,"non","rien","0 - 2"]
[null,null,null,null,null,null,null,null,null,null,null,null,null,null,null,null,null,"oui","montant annuel","3 - 5"]
[null,null,null,null,null,null,null,null,null,null,null,null,null,null,null,null,null,null,"montant mensuel","6 - 10"]
[null,null,null,null,null,null,null,null,null,null,null,null,null,null,null,null,null,null,null,"11 - 15"]
[null,null,null,null,null,null,null,null,null,null,null,null,null,null,null,null,null,null,null,"16 - 20"]
[null,null,null,null,null,null,null,null,null,null,null,null,null,null,null,null,null,null,null,"21+"]

{"sheet":"Coût personnel","index":5,"n_rows":32,"n_cols":13,"rows_kept":32,"cut":false,"hidden":false,"merged":[[33,1,33,7],[1,1,1,8]]}
[]
[null,"CALCUL COÛT PERSONNEL ROULANT"]
[]
[null,null,null,null,"jour"]
[null,null,null,null,1]
[null,null,"Totaal aantal werkuur (decimaal)",null,{"$f":"CIRCUIT!G15*24","v":0}]
[null,null,"Totaal aantal zondaguren (decimaal)",null,{"$f":"CIRCUIT!G16*24","v":0}]
[null,null,"Totaal aantal nachturen (decimaal)",null,{"$f":"CIRCUIT!G17*24","v":0}]
[null,null,"Salaires bruts standard",null,{"$f":"IF(CIRCUIT!G28=CIRCUIT!T43,E6*'Personnel Roulant'!J9,\nIF(CIRCUIT!G28=CIRCUIT!T44,E6*'Personnel Roulant'!J11,\nIF(CIRCUIT!G28=CIRCUIT!T45,E6*'Personnel Roulant'!J13,\nIF(CIRCUIT!G28=CIRCUIT!T46,E6*'Personnel Roulant'!J15,\nIF(CIRCUIT!G28=CIRCUIT!T47,E6*'Personnel Roulant'!J17,\nIF(CIRCUIT!G28=CIRCUIT!T48,E6*'Personnel Roulant'!J19, \"Ancienneté?\"))))))","v":"Ancienneté?"}]
[null,null,"Supplément travail dominical",null,{"$f":"E9/E6*E7","v":{"$error":"#VALUE!"}}]
[null,null,"Supplément travail de nuit",null,{"$f":"E8*'Personnel Roulant'!J26","v":0}]
[null,null,"Duur stationnement 1",null,{"$f":"CIRCUIT!I23*24","v":0},null,null,null,null,null,null,"Premie S1",{"$f":"IF(E12>0,(0.25+E12/2)*($E$9/$E$6),0)","v":0}]
[null,null,"Duur stationnement 2",null,{"$f":"CIRCUIT!K23*24","v":0},null,null,null,null,null,null,"Premie S2",{"$f":"IF(E13>0,(0.25+E13/2)*($E$9/$E$6),0)","v":0}]
[null,null,"Duur stationnement 3",null,{"$f":"CIRCUIT!M23*24","v":0},null,null,null,null,null,null,"Premie S3",{"$f":"IF(E14>0,(0.25+E14/2)*($E$9/$E$6),0)","v":0}]
[null,null,"Duur stationnement 4",null,{"$f":"CIRCUIT!O23*24","v":0},null,null,null,null,null,null,"Premie S4",{"$f":"IF(E15>0,(0.25+E15/2)*($E$9/$E$6),0)","v":0}]
[null,null,"Duur onderbreking 1",null,{"$f":"CIRCUIT!I25*24","v":0},null,null,null,null,null,null,"Premie O1",{"$f":"IF(E16>=1,0,E16*($E$9/$E$6))","v":{"$error":"#VALUE!"}}]
[null,null,"Duur onderbreking 2",null,{"$f":"CIRCUIT!K25*24","v":0},null,null,null,null,null,null,"Premie O2",{"$f":"IF(AND(E17>=1,E16<1),0,IF(E17>=1,$E$9/$E$6,E17*($E$9/$E$6)))","v":{"$error":"#VALUE!"}}]
[null,null,"Duur onderbreking 3",null,{"$f":"CIRCUIT!M25*24","v":0},null,null,null,null,null,null,"Premie O3",{"$f":"IF(AND(E18>=1,E17<1,E16<1),0,IF(E18>=1,$E$9/$E$6,E18*($E$9/$E$6)))","v":{"$error":"#VALUE!"}}]
[null,null,"Duur onderbreking 4",null,{"$f":"CIRCUIT!O25*24","v":0},null,null,null,null,null,null,"Premie O4",{"$f":"IF(AND(E19>=1,E18<1,E17<1,E16<1),0,IF(E19>=1,$E$9/$E$6,E19*($E$9/$E$6)))","v":{"$error":"#VALUE!"}}]
[null,null,"Prime de stationnement",null,{"$f":"SUM(M12:M15)","v":0}]
[null,null,"Indemnisation de coupure",null,{"$f":"SUM(M16:M19)","v":{"$error":"#VALUE!"}}]
[null,null,"Rémunération services coupés",null,{"$f":"IF(CIRCUIT!G32=CIRCUIT!R44,'Personnel Roulant'!J32,0)","v":0}]
[null,null,"Prime de fin d'année",null,{"$f":"'Personnel Roulant'!J30/218.5/7.6*E6","v":0}]
[null,null,"ONSS employeur",null,{"$f":"((SUM(E9,E10,E11,E20,E21,E22,E23)*1.08*'Personnel Roulant'!J43))-('Personnel Roulant'!J45/218.5/7.6*E6)","v":{"$error":"#VALUE!"}}]
[null,null,"Éco-chèques",null,{"$f":"IF(CIRCUIT!G36=CIRCUIT!R44,('Personnel Roulant'!J38+'Personnel Roulant'!J40)/218.5/7.6*E6,0)","v":0}]
[null,null,null,null,null,"Grand circuit","Petit circuit"]
[null,null,"Indemnité RGPT",null,{"$f":"IF(CIRCUIT!$G$7=CIRCUIT!$R$43,F27,G27)","v":8.11},{"$f":"IF(CIRCUIT!G15*CIRCUIT!G19*24>25,'Personnel Roulant'!J21,'Personnel Roulant'!J23)","v":0},{"$f":"'Personnel Roulant'!J21-'Personnel Roulant'!J23","v":8.11},null,null,null,"Coût tenu en compte pour les petits circuits est la différence entre le coût un moins de 25 heures par semaine et un plus de 25 heures par semaine"]
[null,null,"Indemnité vêtements de travail",null,{"$f":"IF(CIRCUIT!$G$7=CIRCUIT!$R$43,F28,G28)","v":0},{"$f":"IF(CIRCUIT!G34=CIRCUIT!S44,'Personnel Roulant'!J34/CIRCUIT!G30,IF(CIRCUIT!G34=CIRCUIT!S45,'Personnel Roulant'!J36/(4*CIRCUIT!G19),0))","v":0},0,null,null,null,"Pour les petits circuits l'indemnité a déjà été payé"]
[null,null,"Autres coûts salariaux",null,{"$f":"IF(CIRCUIT!$G$7=CIRCUIT!$R$43,(('Personnel Roulant'!J47+'Personnel Roulant'!J49)/218.5/7.6*E6)+F29,('Personnel Roulant'!J47+'Personnel Roulant'!J49)/218.5/7.6*E6)","v":0},{"$f":"('Personnel Roulant'!J51+'Personnel Roulant'!J53+'Personnel Roulant'!J55)/CIRCUIT!G30","v":{"$error":"#DIV/0!"}},0,null,null,null,"Pour les petits circuits les coûts de l'examen médicale et la formation continue ont déjà été payé"]
[null,null,"Chèques-repas",null,{"$f":"'Personnel Roulant'!J57","v":0}]
[null,null,"Coûts salariaux supplémentaires"]
[null,null,"Coûts salariaux totaux tous les CH",null,{"$f":"SUM(E9,E10,E11,E20,E21,E22,E23,E24,E27,E28,E25,E29,E30,E31)","v":{"$error":"#VALUE!"}}]

{"sheet":"Prix de revient et prix d'offre","index":6,"n_rows":67,"n_cols":25,"rows_kept":67,"cut":false,"hidden":false,"merged":[[56,4,56,5],[63,3,66,3],[64,4,64,5],[65,4,65,5],[33,3,34,3],[43,3,44,3],[38,3,39,3],[46,3,52,3],[68,9,68,16],[68,17,68,19],[29,3,29,5],[38,4,39,4],[1,1,1,19],[15,3,17,3],[19,3,21,3],[13,3,13,5],[68,1,68,8],[33,4,34,4],[47,4,49,4],[57,4,57,5],[58,4,58,5],[63,4,63,5],[56,3,59,3],[61,3,61,5]]}
[]
[null,"CALCUL PRIX DE REVIENT ET PRIX D'OFFRE"]
[]
[null,null,"1. Coût fixe ou variable: Faites votre choix"]
[]
[null,null,null,null,null,"Amortissement et financement  (C4-C6)                                     ",null,null,null,null,null,null,null,null,null,null,null,null,null,null,null,null,"Coût fixe",1,"Amortissement & Financement (C4-C6)                                     "]
[null,null,null,null,null,"Garage/Infrastructure (C7)                                     ",null,null,null,null,null,null,null,null,null,null,null,null,null,null,null,null,"Coût variable",1,"Garage/Infrastructure (C7)                                     "]
[null,null,null,null,null,"Assurances véhicule (C8)                                     ",null,null,null,null,null,null,null,null,null,null,null,null,null,null,null,null,null,1,"Assurances véhicule (C8)                                     "]
[null,null,null,null,null,"Administration (C10)                                     ",null,null,null,null,null,null,null,null,null,null,null,null,null,null,null,null,null,1,"Administration (C10)                                     "]
[null,null,null,null,null,"Autres coûts spécifiques liés au véhicule                                     ",null,null,null,null,null,null,null,null,null,null,null,null,null,null,null,null,null,1,"Autres coûts spécifiques liés au véhicule"]
[]
[null,null,"2. Coûts indépendant du véhicule"]
[]
[null,null,null,"% du coût fixe à tenir en compte"]
[]
[null,null,null,"FIXE",{"$f":"IF($X7=1,\"C7\",\"\")","v":"C7"},{"$f":"IF($X7=1,\"Garage - Infrastructure\",\"\")","v":"Garage - Infrastructure"},null,null,{"$f":"IF(X7=1,(SUM(Entreprise!$G$30,Entreprise!$G$32,Entreprise!$G$34,Entreprise!$G$36)/Entreprise!$G$9/Entreprise!$G$11)*I14,\"\")","v":{"$error":"#DIV/0!"}}]
[null,null,null,null,{"$f":"IF($X9=1,\"C10\",\"\")","v":"C10"},{"$f":"IF($X9=1,\"Administration\",\"\")","v":"Administration"},null,null,{"$f":"IF(X9=1,(SUM(Entreprise!G40,Entreprise!G42,Entreprise!G44,Entreprise!G46,Entreprise!G48,Entreprise!G50,Entreprise!G52,Entreprise!G54,Entreprise!G56, Entreprise!G58)/Entreprise!G9/Entreprise!G11)*I14,\"\")","v":{"$error":"#DIV/0!"}}]
[null,null,null,null,null,"Educheck",null,null,{"$f":"CIRCUIT!$G38/182","v":0}]
[]
[null,null,null,"VARIABLE",{"$f":"IF($X7=2,\"C7\",\"\")","v":""},{"$f":"IF($X7=2,\"Garage - Infrastructuur\",\"\")","v":""},null,null,{"$f":"IF($X7=2,(SUM(Entreprise!$G30,Entreprise!$G32,Entreprise!$G34,Entreprise!$G36)/Entreprise!$G13*CIRCUIT!$G13),\"\")","v":""}]
[null,null,null,null,{"$f":"IF($X9=2,\"C10\",\"\")","v":""},{"$f":"IF($X9=2,\"Administratie\",\"\")","v":""},null,null,{"$f":"IF($X9=2,((Entreprise!$G40+Entreprise!$G42+Entreprise!$G44+Entreprise!$G46+Entreprise!$G48+Entreprise!$G50+Entreprise!$G52+Entreprise!$G54+Entreprise!$G56+Entreprise!G58)/Entreprise!$G13*CIRCUIT!$G13),\"\")","v":""}]
[null,null,null,null,"C9","Coût personnel chauffeur",null,null,{"$f":"'Coût personnel'!$E32","v":{"$error":"#VALUE!"}}]
[]
[null,null,"3. Amortissement et financement du véhicule"]
[]
[]
[null,null,null,null,null,null,null,null,{"$f":"Véhicule!H8","v":"Mercedes Sprinter 23pl"},null,{"$f":"Véhicule!J8","v":"Iveco 36pl"},null,{"$f":"Véhicule!L8","v":"Iveco 38pl"},null,{"$f":"Véhicule!N8","v":"Mercedes Atego 40pl"},null,{"$f":"Véhicule!P8","v":"Mercedes Intouro 55pl"},null,{"$f":"Véhicule!R8","v":"Mercedes Intouro 65pl"}]
[null,null,null,null,null,null,null,null,true,null,true,null,true,null,true,null,true,null,true]
[]
[null,null,null,"% du coût fixe à tenir en compte (si la celule est vide, 0% est appliqué)",null,null,null,null,1,null,1,null,1,null,1,null,1,null,1]
[]
[null,null,null,null,null,"Voertuig in geval aankoop",null,null,{"$f":"Véhicule!H16*(1-Véhicule!H18)/Véhicule!H20/Véhicule!H24","v":{"$error":"#DIV/0!"}},null,{"$f":"Véhicule!J16*(1-Véhicule!J18)/Véhicule!J20/Véhicule!J24","v":{"$error":"#DIV/0!"}},null,{"$f":"Véhicule!L16*(1-Véhicule!L18)/Véhicule!L20/Véhicule!L24","v":{"$error":"#DIV/0!"}},null,{"$f":"Véhicule!N16*(1-Véhicule!N18)/Véhicule!N20/Véhicule!N24","v":{"$error":"#DIV/0!"}},null,{"$f":"Véhicule!P16*(1-Véhicule!P18)/Véhicule!P20/Véhicule!P24","v":{"$error":"#DIV/0!"}},null,{"$f":"Véhicule!R16*(1-Véhicule!R18)/Véhicule!R20/Véhicule!R24","v":{"$error":"#DIV/0!"}}]
[null,null,null,null,null,"Voertuig in geval leasing",null,null,{"$f":"Véhicule!H14*12/Véhicule!H24","v":{"$error":"#DIV/0!"}},null,{"$f":"Véhicule!J14*12/Véhicule!J24","v":{"$error":"#DIV/0!"}},null,{"$f":"Véhicule!L14*12/Véhicule!L24","v":{"$error":"#DIV/0!"}},null,{"$f":"Véhicule!N14*12/Véhicule!N24","v":{"$error":"#DIV/0!"}},null,{"$f":"Véhicule!P14*12/Véhicule!P24","v":{"$error":"#DIV/0!"}},null,{"$f":"Véhicule!R14*12/Véhicule!R24","v":{"$error":"#DIV/0!"}}]
[null,null,null,"FIXE",{"$f":"IF($X6=1,\"C4-C6\",\"\")","v":"C4-C6"},{"$f":"IF($X6=1,\"Amortissement véhicule ou leasing\",\"\")","v":"Amortissement véhicule ou leasing"},null,null,{"$f":"IF(I28=TRUE,(IF($X6=1,(IF(Véhicule!H12=1,I32,I33))*(I30),\"\")),\"\")","v":{"$error":"#DIV/0!"}},null,{"$f":"IF(K28=TRUE,(IF($X6=1,(IF(Véhicule!J12=1,K32,K33))*(K30),\"\")),\"\")","v":{"$error":"#DIV/0!"}},null,{"$f":"IF(M28=TRUE,(IF($X6=1,(IF(Véhicule!L12=1,M32,M33))*(M30),\"\")),\"\")","v":{"$error":"#DIV/0!"}},null,{"$f":"IF(O28=TRUE,(IF($X6=1,(IF(Véhicule!N12=1,O32,O33))*(O30),\"\")),\"\")","v":{"$error":"#DIV/0!"}},null,{"$f":"IF(Q28=TRUE,(IF($X6=1,(IF(Véhicule!P12=1,Q32,Q33))*(Q30),\"\")),\"\")","v":{"$error":"#DIV/0!"}},null,{"$f":"IF(S28=TRUE,(IF($X6=1,(IF(Véhicule!R12=1,S32,S33))*(S30),\"\")),\"\")","v":{"$error":"#DIV/0!"}}]
[null,null,null,null,null,{"$f":"IF($X6=1,\"Financement véhicule\",\"\")","v":"Financement véhicule"},null,null,{"$f":"IF(I28=TRUE,IF(AND($X6=1,Véhicule!H12=1),\n((Véhicule!H16*(1-Véhicule!H18)/2+Véhicule!H16*Véhicule!H18)\n*(Véhicule!H30*(1-Véhicule!H32)+Véhicule!H34*Véhicule!H32)\n/Véhicule!H24)*(I30),\"\"),\"\")","v":{"$error":"#DIV/0!"}},null,{"$f":"IF(K28=TRUE,IF(AND($X6=1,Véhicule!J12=1),\n((Véhicule!J16*(1-Véhicule!J18)/2+Véhicule!J16*Véhicule!J18)\n*(Véhicule!J30*(1-Véhicule!J32)+Véhicule!J34*Véhicule!J32)\n/Véhicule!J24)*(K30),\"\"),\"\")","v":{"$error":"#DIV/0!"}},null,{"$f":"IF(M28=TRUE,IF(AND($X6=1,Véhicule!L12=1),\n((Véhicule!L16*(1-Véhicule!L18)/2+Véhicule!L16*Véhicule!L18)\n*(Véhicule!L30*(1-Véhicule!L32)+Véhicule!L34*Véhicule!L32)\n/Véhicule!L24)*(M30),\"\"),\"\")","v":{"$error":"#DIV/0!"}},null,{"$f":"IF(O28=TRUE,IF(AND($X6=1,Véhicule!N12=1),\n((Véhicule!N16*(1-Véhicule!N18)/2+Véhicule!N16*Véhicule!N18)\n*(Véhicule!N30*(1-Véhicule!N32)+Véhicule!N34*Véhicule!N32)\n/Véhicule!N24)*(O30),\"\"),\"\")","v":{"$error":"#DIV/0!"}},null,{"$f":"IF(Q28=TRUE,IF(AND($X6=1,Véhicule!P12=1),\n((Véhicule!P16*(1-Véhicule!P18)/2+Véhicule!P16*Véhicule!P18)\n*(Véhicule!P30*(1-Véhicule!P32)+Véhicule!P34*Véhicule!P32)\n/Véhicule!P24)*(Q30),\"\"),\"\")","v":{"$error":"#DIV/0!"}},null,{"$f":"IF(S28=TRUE,IF(AND($X6=1,Véhicule!R12=1),\n((Véhicule!R16*(1-Véhicule!R18)/2+Véhicule!R16*Véhicule!R18)\n*(Véhicule!R30*(1-Véhicule!R32)+Véhicule!R34*Véhicule!R32)\n/Véhicule!R24)*(S30),\"\"),\"\")","v":{"$error":"#DIV/0!"}}]
[]
[null,null,null,null,null,"Voertuig in geval van aankoop",null,null,{"$f":"Véhicule!H16*(1-Véhicule!H18)/Véhicule!H22*CIRCUIT!$G13","v":{"$error":"#DIV/0!"}},null,{"$f":"Véhicule!J16*(1-Véhicule!J18)/Véhicule!J22*CIRCUIT!$G13","v":{"$error":"#DIV/0!"}},null,{"$f":"Véhicule!L16*(1-Véhicule!L18)/Véhicule!L22*CIRCUIT!$G13","v":{"$error":"#DIV/0!"}},null,{"$f":"Véhicule!N16*(1-Véhicule!N18)/Véhicule!N22*CIRCUIT!$G13","v":{"$error":"#DIV/0!"}},null,{"$f":"Véhicule!P16*(1-Véhicule!P18)/Véhicule!P22*CIRCUIT!$G13","v":{"$error":"#DIV/0!"}},null,{"$f":"Véhicule!R16*(1-Véhicule!R18)/Véhicule!R22*CIRCUIT!$G13","v":{"$error":"#DIV/0!"}}]
[null,null,null,null,null,"Voertuig in geval van leasing",null,null,{"$f":"Véhicule!H14*12/Véhicule!H26*CIRCUIT!$G13","v":{"$error":"#DIV/0!"}},null,{"$f":"Véhicule!J14*12/Véhicule!J26*CIRCUIT!$G13","v":{"$error":"#DIV/0!"}},null,{"$f":"Véhicule!L14*12/Véhicule!L26*CIRCUIT!$G13","v":{"$error":"#DIV/0!"}},null,{"$f":"Véhicule!N14*12/Véhicule!N26*CIRCUIT!$G13","v":{"$error":"#DIV/0!"}},null,{"$f":"Véhicule!P14*12/Véhicule!P26*CIRCUIT!$G13","v":{"$error":"#DIV/0!"}},null,{"$f":"Véhicule!R14*12/Véhicule!R26*CIRCUIT!$G13","v":{"$error":"#DIV/0!"}}]
[null,null,null,{"$f":"IF($X6=2,\"VARIABLE\",\"\")","v":""},{"$f":"IF($X6=2,\"C4-C6\",\"\")","v":""},{"$f":"IF($X6=2,\"Amortissement du véhicule\",\"\")","v":""},null,null,{"$f":"IF(I28=TRUE,(IF($X6=2,(IF(Véhicule!H12=1,I37,I38)),\"\")),\"\")","v":""},null,{"$f":"IF(K28=TRUE,(IF($X6=2,(IF(Véhicule!J12=1,K37,K38)),\"\")),\"\")","v":""},null,{"$f":"IF(M28=TRUE,(IF($X6=2,(IF(Véhicule!L12=1,M37,M38)),\"\")),\"\")","v":""},null,{"$f":"IF(O28=TRUE,(IF($X6=2,(IF(Véhicule!N12=1,O37,O38)),\"\")),\"\")","v":""},null,{"$f":"IF(Q28=TRUE,(IF($X6=2,(IF(Véhicule!P12=1,Q37,Q38)),\"\")),\"\")","v":""},null,{"$f":"IF(S28=TRUE,(IF($X6=2,(IF(Véhicule!R12=1,S37,S38)),\"\")),\"\")","v":""}]
[null,null,null,null,null,{"$f":"IF($X6=2,\"Financement du véhicule\",\"\")","v":""},null,null,{"$f":"IF(I28=TRUE,IF($X6=2,(((Véhicule!H16*(1-Véhicule!H18)/2+Véhicule!H16*Véhicule!H18)\n*(Véhicule!H30*(1-Véhicule!H32)+Véhicule!H34*Véhicule!H32)\n/Véhicule!H26)*CIRCUIT!$G13),\"\"),\"\")","v":""},null,{"$f":"IF(K28=TRUE,IF($X6=2,(((Véhicule!J16*(1-Véhicule!J18)/2+Véhicule!J16*Véhicule!J18)\n*(Véhicule!J30*(1-Véhicule!J32)+Véhicule!J34*Véhicule!J32)\n/Véhicule!J26)*CIRCUIT!$G13),\"\"),\"\")","v":""},null,{"$f":"IF(M28=TRUE,IF($X6=2,(((Véhicule!L16*(1-Véhicule!L18)/2+Véhicule!L16*Véhicule!L18)\n*(Véhicule!L30*(1-Véhicule!L32)+Véhicule!L34*Véhicule!L32)\n/Véhicule!L26)*CIRCUIT!$G13),\"\"),\"\")","v":""},null,{"$f":"IF(O28=TRUE,IF($X6=2,(((Véhicule!N16*(1-Véhicule!N18)/2+Véhicule!N16*Véhicule!N18)\n*(Véhicule!N30*(1-Véhicule!N32)+Véhicule!N34*Véhicule!N32)\n/Véhicule!N26)*CIRCUIT!$G13),\"\"),\"\")","v":""},null,{"$f":"IF(Q28=TRUE,IF($X6=2,(((Véhicule!P16*(1-Véhicule!P18)/2+Véhicule!P16*Véhicule!P18)\n*(Véhicule!P30*(1-Véhicule!P32)+Véhicule!P34*Véhicule!P32)\n/Véhicule!P26)*CIRCUIT!$G13),\"\"),\"\")","v":""},null,{"$f":"IF(S28=TRUE,IF($X6=2,(((Véhicule!R16*(1-Véhicule!R18)/2+Véhicule!R16*Véhicule!R18)\n*(Véhicule!R30*(1-Véhicule!R32)+Véhicule!R34*Véhicule!R32)\n/Véhicule!R26)*CIRCUIT!$G13),\"\"),\"\")","v":""}]
[]
[null,null,"4. Autres coûts spécifiques liés au véhicule"]
[]
[null,null,null,"FIXE",{"$f":"IF($X8=1,\"C8\",\"\")","v":"C8"},{"$f":"IF($X8=1,\"Assurances véhicule\",\"\")","v":"Assurances véhicule"},null,null,{"$f":"IF(I28=TRUE,IF($X8=1,((Véhicule!H$58+Véhicule!H$60+Véhicule!H$62+Véhicule!H$64+Véhicule!H$66+Véhicule!H$68+Véhicule!H$70+Véhicule!H$72)/Véhicule!H$24*(I30)),\"\"),\"\")","v":{"$error":"#DIV/0!"}},null,{"$f":"IF(K28=TRUE,IF($X8=1,((Véhicule!J$58+Véhicule!J$60+Véhicule!J$62+Véhicule!J$64+Véhicule!J$66+Véhicule!J$68+Véhicule!J$70+Véhicule!J$72)/Véhicule!J$24*(K30)),\"\"),\"\")","v":{"$error":"#DIV/0!"}},null,{"$f":"IF(M28=TRUE,IF($X8=1,((Véhicule!L$58+Véhicule!L$60+Véhicule!L$62+Véhicule!L$64+Véhicule!L$66+Véhicule!L$68+Véhicule!L$70+Véhicule!L$72)/Véhicule!L$24*(M30)),\"\"),\"\")","v":{"$error":"#DIV/0!"}},null,{"$f":"IF(O28=TRUE,IF($X8=1,((Véhicule!N$58+Véhicule!N$60+Véhicule!N$62+Véhicule!N$64+Véhicule!N$66+Véhicule!N$68+Véhicule!N$70+Véhicule!N$72)/Véhicule!N$24*(O30)),\"\"),\"\")","v":{"$error":"#DIV/0!"}},null,{"$f":"IF(Q28=TRUE,IF($X8=1,((Véhicule!P$58+Véhicule!P$60+Véhicule!P$62+Véhicule!P$64+Véhicule!P$66+Véhicule!P$68+Véhicule!P$70+Véhicule!P$72)/Véhicule!P$24*(Q30)),\"\"),\"\")","v":{"$error":"#DIV/0!"}},null,{"$f":"IF(S28=TRUE,IF($X8=1,((Véhicule!R$58+Véhicule!R$60+Véhicule!R$62+Véhicule!R$64+Véhicule!R$66+Véhicule!R$68+Véhicule!R$70+Véhicule!R$72)/Véhicule!R$24*(S30)),\"\"),\"\")","v":{"$error":"#DIV/0!"}}]
[null,null,null,null,null,{"$f":"IF($X10=1,\"Autres frais\",\"\")","v":"Autres frais"},null,null,{"$f":"IF(I28=TRUE,IF($X10=1,((Véhicule!H$83*Véhicule!H$85+Véhicule!H$87+Véhicule!H$89)/Véhicule!H$24*(I30)),\"\"),\"\")","v":{"$error":"#DIV/0!"}},null,{"$f":"IF(K28=TRUE,IF($X10=1,((Véhicule!J$83*Véhicule!J$85+Véhicule!J$87+Véhicule!J$89)/Véhicule!J$24*(K30)),\"\"),\"\")","v":{"$error":"#DIV/0!"}},null,{"$f":"IF(M28=TRUE,IF($X10=1,((Véhicule!L$83*Véhicule!L$85+Véhicule!L$87+Véhicule!L$89)/Véhicule!L$24*(M30)),\"\"),\"\")","v":{"$error":"#DIV/0!"}},null,{"$f":"IF(O28=TRUE,IF($X10=1,((Véhicule!N$83*Véhicule!N$85+Véhicule!N$87+Véhicule!N$89)/Véhicule!N$24*(O30)),\"\"),\"\")","v":{"$error":"#DIV/0!"}},null,{"$f":"IF(Q28=TRUE,IF($X10=1,((Véhicule!P$83*Véhicule!P$85+Véhicule!P$87+Véhicule!P$89)/Véhicule!P$24*(Q30)),\"\"),\"\")","v":{"$error":"#DIV/0!"}},null,{"$f":"IF(S28=TRUE,IF($X10=1,((Véhicule!R$83*Véhicule!R$85+Véhicule!R$87+Véhicule!R$89)/Véhicule!R$24*(S30)),\"\"),\"\")","v":{"$error":"#DIV/0!"}}]
[]
[null,null,null,"VARIABLE",{"$f":"IF($X8=2,\"C8\",\"\")","v":""},{"$f":"IF($X8=2,\"Assurances véhicules\",\"\")","v":""},null,null,{"$f":"IF(I28=TRUE,IF($X8=2,((Véhicule!H$58+Véhicule!H$60+Véhicule!H$62+Véhicule!H$64+Véhicule!H$66+Véhicule!H$68+Véhicule!H$70+Véhicule!H$72)/Véhicule!H$26*CIRCUIT!$G13),\"\"),\"\")","v":""},null,{"$f":"IF(K28=TRUE,IF($X8=2,((Véhicule!J$58+Véhicule!J$60+Véhicule!J$62+Véhicule!J$64+Véhicule!J$66+Véhicule!J$68+Véhicule!J$70+Véhicule!J$72)/Véhicule!J$26*CIRCUIT!$G13),\"\"),\"\")","v":""},null,{"$f":"IF(M28=TRUE,IF($X8=2,((Véhicule!L$58+Véhicule!L$60+Véhicule!L$62+Véhicule!L$64+Véhicule!L$66+Véhicule!L$68+Véhicule!L$70+Véhicule!L$72)/Véhicule!L$26*CIRCUIT!$G13),\"\"),\"\")","v":""},null,{"$f":"IF(O28=TRUE,IF($X8=2,((Véhicule!N$58+Véhicule!N$60+Véhicule!N$62+Véhicule!N$64+Véhicule!N$66+Véhicule!N$68+Véhicule!N$70+Véhicule!N$72)/Véhicule!N$26*CIRCUIT!$G13),\"\"),\"\")","v":""},null,{"$f":"IF(Q28=TRUE,IF($X8=2,((Véhicule!P$58+Véhicule!P$60+Véhicule!P$62+Véhicule!P$64+Véhicule!P$66+Véhicule!P$68+Véhicule!P$70+Véhicule!P$72)/Véhicule!P$26*CIRCUIT!$G13),\"\"),\"\")","v":""},null,{"$f":"IF(S28=TRUE,IF($X8=2,((Véhicule!R$58+Véhicule!R$60+Véhicule!R$62+Véhicule!R$64+Véhicule!R$66+Véhicule!R$68+Véhicule!R$70+Véhicule!R$72)/Véhicule!R$26*CIRCUIT!$G13),\"\"),\"\")","v":""}]
[null,null,null,null,"C1","Gasoil",null,null,{"$f":"IF(I28=TRUE,Véhicule!H38*Entreprise!$G22*CIRCUIT!$G13/100,\"\")","v":0},null,{"$f":"IF(K28=TRUE,Véhicule!J38*Entreprise!$G22*CIRCUIT!$G13/100,\"\")","v":0},null,{"$f":"IF(M28=TRUE,Véhicule!L38*Entreprise!$G22*CIRCUIT!$G13/100,\"\")","v":0},null,{"$f":"IF(O28=TRUE,Véhicule!N38*Entreprise!$G22*CIRCUIT!$G13/100,\"\")","v":0},null,{"$f":"IF(Q28=TRUE,Véhicule!P38*Entreprise!$G22*CIRCUIT!$G13/100,\"\")","v":0},null,{"$f":"IF(S28=TRUE,Véhicule!R38*Entreprise!$G22*CIRCUIT!$G13/100,\"\")","v":0}]
[null,null,null,null,null,"Huile",null,null,{"$f":"IF(I28=TRUE,Véhicule!H40*Entreprise!$G24*CIRCUIT!$G13/100,\"\")","v":0},null,{"$f":"IF(K28=TRUE,Véhicule!J40*Entreprise!$G24*CIRCUIT!$G13/100,\"\")","v":0},null,{"$f":"IF(M28=TRUE,Véhicule!L40*Entreprise!$G24*CIRCUIT!$G13/100,\"\")","v":0},null,{"$f":"IF(O28=TRUE,Véhicule!N40*Entreprise!$G24*CIRCUIT!$G13/100,\"\")","v":0},null,{"$f":"IF(Q28=TRUE,Véhicule!P40*Entreprise!$G24*CIRCUIT!$G13/100,\"\")","v":0},null,{"$f":"IF(S28=TRUE,Véhicule!R40*Entreprise!$G24*CIRCUIT!$G13/100,\"\")","v":0}]
[null,null,null,null,null,"Adblue",null,null,{"$f":"IF(I28=TRUE,Véhicule!H42*Entreprise!$G26*CIRCUIT!$G13/100,\"\")","v":0},null,{"$f":"IF(K28=TRUE,Véhicule!J42*Entreprise!$G26*CIRCUIT!$G13/100,\"\")","v":0},null,{"$f":"IF(M28=TRUE,Véhicule!L42*Entreprise!$G26*CIRCUIT!$G13/100,\"\")","v":0},null,{"$f":"IF(O28=TRUE,Véhicule!N42*Entreprise!$G26*CIRCUIT!$G13/100,\"\")","v":0},null,{"$f":"IF(Q28=TRUE,Véhicule!P42*Entreprise!$G26*CIRCUIT!$G13/100,\"\")","v":0},null,{"$f":"IF(S28=TRUE,Véhicule!R42*Entreprise!$G26*CIRCUIT!$G13/100,\"\")","v":0}]
[null,null,null,null,"C2","Pneus",null,null,{"$f":"IF(I28=TRUE,(Véhicule!H46*Véhicule!H54/Véhicule!H50*CIRCUIT!$G13)+(Véhicule!H48*Véhicule!H54/Véhicule!H52*CIRCUIT!$G13),\"\")","v":{"$error":"#DIV/0!"}},null,{"$f":"IF(K28=TRUE,(Véhicule!J46*Véhicule!J54/Véhicule!J50*CIRCUIT!$G13)+(Véhicule!J48*Véhicule!J54/Véhicule!J52*CIRCUIT!$G13),\"\")","v":{"$error":"#DIV/0!"}},null,{"$f":"IF(M28=TRUE,(Véhicule!L46*Véhicule!L54/Véhicule!L50*CIRCUIT!$G13)+(Véhicule!L48*Véhicule!L54/Véhicule!L52*CIRCUIT!$G13),\"\")","v":{"$error":"#DIV/0!"}},null,{"$f":"IF(O28=TRUE,(Véhicule!N46*Véhicule!N54/Véhicule!N50*CIRCUIT!$G13)+(Véhicule!N48*Véhicule!N54/Véhicule!N52*CIRCUIT!$G13),\"\")","v":{"$error":"#DIV/0!"}},null,{"$f":"IF(Q28=TRUE,(Véhicule!P46*Véhicule!P54/Véhicule!P50*CIRCUIT!$G13)+(Véhicule!P48*Véhicule!P54/Véhicule!P52*CIRCUIT!$G13),\"\")","v":{"$error":"#DIV/0!"}},null,{"$f":"IF(S28=TRUE,(Véhicule!R46*Véhicule!R54/Véhicule!R50*CIRCUIT!$G13)+(Véhicule!R48*Véhicule!R54/Véhicule!R52*CIRCUIT!$G13),\"\")","v":{"$error":"#DIV/0!"}}]
[null,null,null,null,"C3","Entretien et réparations",null,null,{"$f":"IF(I28=TRUE,(((Véhicule!H77+Véhicule!H79)/Véhicule!H26)+(Entreprise!$G18/Entreprise!$G13))*CIRCUIT!$G13,\"\")","v":{"$error":"#DIV/0!"}},null,{"$f":"IF(K28=TRUE,(((Véhicule!J77+Véhicule!J79)/Véhicule!J26)+(Entreprise!$G18/Entreprise!$G13))*CIRCUIT!$G13,\"\")","v":{"$error":"#DIV/0!"}},null,{"$f":"IF(M28=TRUE,(((Véhicule!L77+Véhicule!L79)/Véhicule!L26)+(Entreprise!$G18/Entreprise!$G13))*CIRCUIT!$G13,\"\")","v":{"$error":"#DIV/0!"}},null,{"$f":"IF(O28=TRUE,(((Véhicule!N77+Véhicule!N79)/Véhicule!N26)+(Entreprise!$G18/Entreprise!$G13))*CIRCUIT!$G13,\"\")","v":{"$error":"#DIV/0!"}},null,{"$f":"IF(Q28=TRUE,(((Véhicule!P77+Véhicule!P79)/Véhicule!P26)+(Entreprise!$G18/Entreprise!$G13))*CIRCUIT!$G13,\"\")","v":{"$error":"#DIV/0!"}},null,{"$f":"IF(S28=TRUE,(((Véhicule!R77+Véhicule!R79)/Véhicule!R26)+(Entreprise!$G18/Entreprise!$G13))*CIRCUIT!$G13,\"\")","v":{"$error":"#DIV/0!"}}]
[null,null,null,null,null,{"$f":"IF($X10=2,\"Autres coûts\",\"\")","v":""},null,null,{"$f":"IF(I28=TRUE,IF($X$10=2,((Véhicule!H83*Véhicule!H85+Véhicule!H87+Véhicule!H89)/Véhicule!H26*CIRCUIT!$G13),\"\"),\"\")","v":""},null,{"$f":"IF(K28=TRUE,IF($X$10=2,((Véhicule!J83*Véhicule!J85+Véhicule!J87+Véhicule!J89)/Véhicule!J26*CIRCUIT!$G13),\"\"),\"\")","v":""},null,{"$f":"IF(M28=TRUE,IF($X$10=2,((Véhicule!L83*Véhicule!L85+Véhicule!L87+Véhicule!L89)/Véhicule!L26*CIRCUIT!$G13),\"\"),\"\")","v":""},null,{"$f":"IF(O28=TRUE,IF($X$10=2,((Véhicule!N83*Véhicule!N85+Véhicule!N87+Véhicule!N89)/Véhicule!N26*CIRCUIT!$G13),\"\"),\"\")","v":""},null,{"$f":"IF(Q28=TRUE,IF($X$10=2,((Véhicule!P83*Véhicule!P85+Véhicule!P87+Véhicule!P89)/Véhicule!P26*CIRCUIT!$G13),\"\"),\"\")","v":""},null,{"$f":"IF(S28=TRUE,IF($X$10=2,((Véhicule!R83*Véhicule!R85+Véhicule!R87+Véhicule!R89)/Véhicule!R26*CIRCUIT!$G13),\"\"),\"\")","v":""}]
[]
[null,null,"5. Coûts totaux et marge"]
[]
[null,null,null,"COÛTS TOTAUX","Coût total pour 1 jour",null,null,null,{"$f":"IF(I28=TRUE,SUM($I16:$I18,$I20:$I22,I34:I35,I39:I40,I44:I45,I47:I53),\"\")","v":{"$error":"#DIV/0!"}},null,{"$f":"IF(K28=TRUE,SUM($I16:$I18,$I20:$I22,K34:K35,K39:K40,K44:K45,K47:K53),\"\")","v":{"$error":"#DIV/0!"}},null,{"$f":"IF(M28=TRUE,SUM($I16:$I18,$I20:$I22,M34:M35,M39:M40,M44:M45,M47:M53),\"\")","v":{"$error":"#DIV/0!"}},null,{"$f":"IF(O28=TRUE,SUM($I16:$I18,$I20:$I22,O34:O35,O39:O40,O44:O45,O47:O53),\"\")","v":{"$error":"#DIV/0!"}},null,{"$f":"IF(Q28=TRUE,SUM($I16:$I18,$I20:$I22,Q34:Q35,Q39:Q40,Q44:Q45,Q47:Q53),\"\")","v":{"$error":"#DIV/0!"}},null,{"$f":"IF(S28=TRUE,SUM($I16:$I18,$I20:$I22,S34:S35,S39:S40,S44:S45,S47:S53),\"\")","v":{"$error":"#DIV/0!"}}]
[null,null,null,null,"Coût fixe par jour",null,null,null,{"$f":"IF(I28=TRUE,SUM($I16:$I18,I34:I35,I44:I45),\"\")","v":{"$error":"#DIV/0!"}},null,{"$f":"IF(K28=TRUE,SUM($I16:$I18,K34:K35,K44:K45),\"\")","v":{"$error":"#DIV/0!"}},null,{"$f":"IF(M28=TRUE,SUM($I16:$I18,M34:M35,M44:M45),\"\")","v":{"$error":"#DIV/0!"}},null,{"$f":"IF(O28=TRUE,SUM($I16:$I18,O34:O35,O44:O45),\"\")","v":{"$error":"#DIV/0!"}},null,{"$f":"IF(Q28=TRUE,SUM($I16:$I18,Q34:Q35,Q44:Q45),\"\")","v":{"$error":"#DIV/0!"}},null,{"$f":"IF(S28=TRUE,SUM($I16:$I18,S34:S35,S44:S45),\"\")","v":{"$error":"#DIV/0!"}}]
[null,null,null,null,"Coût variable par km",null,null,null,{"$f":"IF(I28=TRUE,SUM($I20:$I21,I39:I40,I47:I53)/CIRCUIT!$G13,\"\")","v":{"$error":"#DIV/0!"}},null,{"$f":"IF(K28=TRUE,SUM($I20:$I21,K39:K40,K47:K53)/CIRCUIT!$G13,\"\")","v":{"$error":"#DIV/0!"}},null,{"$f":"IF(M28=TRUE,SUM($I20:$I21,M39:M40,M47:M53)/CIRCUIT!$G13,\"\")","v":{"$error":"#DIV/0!"}},null,{"$f":"IF(O28=TRUE,SUM($I20:$I21,O39:O40,O47:O53)/CIRCUIT!$G13,\"\")","v":{"$error":"#DIV/0!"}},null,{"$f":"IF(Q28=TRUE,SUM($I20:$I21,Q39:Q40,Q47:Q53)/CIRCUIT!$G13,\"\")","v":{"$error":"#DIV/0!"}},null,{"$f":"IF(S28=TRUE,SUM($I20:$I21,S39:S40,S47:S53)/CIRCUIT!$G13,\"\")","v":{"$error":"#DIV/0!"}}]
[null,null,null,null,null,"Coût variable par heure",null,null,{"$f":"IF(I28=TRUE,$I22/(CIRCUIT!$G15*24),\"\")","v":{"$error":"#VALUE!"}},null,{"$f":"IF(K28=TRUE,$I22/(CIRCUIT!$G15*24),\"\")","v":{"$error":"#VALUE!"}},null,{"$f":"IF(M28=TRUE,$I22/(CIRCUIT!$G15*24),\"\")","v":{"$error":"#VALUE!"}},null,{"$f":"IF(O28=TRUE,$I22/(CIRCUIT!$G15*24),\"\")","v":{"$error":"#VALUE!"}},null,{"$f":"IF(Q28=TRUE,$I22/(CIRCUIT!$G15*24),\"\")","v":{"$error":"#VALUE!"}},null,{"$f":"IF(S28=TRUE,$I22/(CIRCUIT!$G15*24),\"\")","v":{"$error":"#VALUE!"}}]
[]
[null,null,null,null,null,null,null,null,null,null,"Marge exprimée","Procentuele marge: ",null,null,null,null,"Marge forfaitaire","Forfaitaire marge: ",null,null,null,null,true,false]
[]
[null,null,null,"COÛT + MARGE","Prix d'offre total pour 1 jour",null,null,null,{"$f":"IF(I$28=TRUE,IF($W$62=TRUE,(I57*(1+$M$62)),(IF($X$62=TRUE,(I57+$S$62),\"\"))),\"\")","v":{"$error":"#DIV/0!"}},null,{"$f":"IF(K$28=TRUE,IF($W$62=TRUE,(K57*(1+$M$62)),(IF($X$62=TRUE,(K57+$S$62),\"\"))),\"\")","v":{"$error":"#DIV/0!"}},null,{"$f":"IF(M$28=TRUE,IF($W$62=TRUE,(M57*(1+$M$62)),(IF($X$62=TRUE,(M57+$S$62),\"\"))),\"\")","v":{"$error":"#DIV/0!"}},null,{"$f":"IF(O$28=TRUE,IF($W$62=TRUE,(O57*(1+$M$62)),(IF($X$62=TRUE,(O57+$S$62),\"\"))),\"\")","v":{"$error":"#DIV/0!"}},null,{"$f":"IF(Q$28=TRUE,IF($W$62=TRUE,(Q57*(1+$M$62)),(IF($X$62=TRUE,(Q57+$S$62),\"\"))),\"\")","v":{"$error":"#DIV/0!"}},null,{"$f":"IF(S$28=TRUE,IF($W$62=TRUE,(S57*(1+$M$62)),(IF($X$62=TRUE,(S57+$S$62),\"\"))),\"\")","v":{"$error":"#DIV/0!"}}]
[null,null,null,null,"Prix d'offre total par jour",null,null,null,{"$f":"IF(I$28=TRUE,IF($W$62=TRUE,(I58*(1+$M$62)),\"\"),\"\")","v":{"$error":"#DIV/0!"}},null,{"$f":"IF(K$28=TRUE,IF($W$62=TRUE,(K58*(1+$M$62)),\"\"),\"\")","v":{"$error":"#DIV/0!"}},null,{"$f":"IF(M$28=TRUE,IF($W$62=TRUE,(M58*(1+$M$62)),\"\"),\"\")","v":{"$error":"#DIV/0!"}},null,{"$f":"IF(O$28=TRUE,IF($W$62=TRUE,(O58*(1+$M$62)),\"\"),\"\")","v":{"$error":"#DIV/0!"}},null,{"$f":"IF(Q$28=TRUE,IF($W$62=TRUE,(Q58*(1+$M$62)),\"\"),\"\")","v":{"$error":"#DIV/0!"}},null,{"$f":"IF(S$28=TRUE,IF($W$62=TRUE,(S58*(1+$M$62)),\"\"),\"\")","v":{"$error":"#DIV/0!"}}]
[null,null,null,null,"Prix d'offre total par km",null,null,null,{"$f":"IF(I$28=TRUE,IF($W$62=TRUE,(I59*(1+$M$62)),\"\"),\"\")","v":{"$error":"#DIV/0!"}},null,{"$f":"IF(K$28=TRUE,IF($W$62=TRUE,(K59*(1+$M$62)),\"\"),\"\")","v":{"$error":"#DIV/0!"}},null,{"$f":"IF(M$28=TRUE,IF($W$62=TRUE,(M59*(1+$M$62)),\"\"),\"\")","v":{"$error":"#DIV/0!"}},null,{"$f":"IF(O$28=TRUE,IF($W$62=TRUE,(O59*(1+$M$62)),\"\"),\"\")","v":{"$error":"#DIV/0!"}},null,{"$f":"IF(Q$28=TRUE,IF($W$62=TRUE,(Q59*(1+$M$62)),\"\"),\"\")","v":{"$error":"#DIV/0!"}},null,{"$f":"IF(S$28=TRUE,IF($W$62=TRUE,(S59*(1+$M$62)),\"\"),\"\")","v":{"$error":"#DIV/0!"}}]
[null,null,null,null,null,"Prix d'offre total par heure",null,null,{"$f":"IF(I$28=TRUE,IF($W$62=TRUE,(I60*(1+$M$62)),\"\"),\"\")","v":{"$error":"#VALUE!"}},null,{"$f":"IF(K$28=TRUE,IF($W$62=TRUE,(K60*(1+$M$62)),\"\"),\"\")","v":{"$error":"#VALUE!"}},null,{"$f":"IF(M$28=TRUE,IF($W$62=TRUE,(M60*(1+$M$62)),\"\"),\"\")","v":{"$error":"#VALUE!"}},null,{"$f":"IF(O$28=TRUE,IF($W$62=TRUE,(O60*(1+$M$62)),\"\"),\"\")","v":{"$error":"#VALUE!"}},null,{"$f":"IF(Q$28=TRUE,IF($W$62=TRUE,(Q60*(1+$M$62)),\"\"),\"\")","v":{"$error":"#VALUE!"}},null,{"$f":"IF(S$28=TRUE,IF($W$62=TRUE,(S60*(1+$M$62)),\"\"),\"\")","v":{"$error":"#VALUE!"}}]